bitfinex/quotes_ETHUSD_20251012
["timestamp","ask_amount","ask_price","bid_price","bid_amount"]
[1760232710595,11.764651,3723.4,3722.3,0.002]
[1760232710799,0.1336,3722.4,3722.3,0.002]
[1760232714218,4.60643885,3722.4,3722.3,0.002]
[1760232714417,5.04683885,3722.4,3722.3,0.002]
[1760232714623,4.60643885,3722.4,3722.3,0.002]
[1760232715048,1.92,3722.4,3722.3,0.002]
[1760232715522,1.919,3722.4,3722.3,0.002]
[1760232716900,0.1112,3725.9,3722.3,15.01480677]
[1760232717102,0.5711,3725.9,3723.3,0.6336]
[1760232717303,0.4599,3725.6,3723.3,0.6336]
[1760232717498,3.14409653,3725.6,3723.7,2.68550098]
[1760232717693,2.68554229,3725.1,3724.1,2.68520124]
[1760232717893,0.001,3725.1,3724.5,2.68491418]
[1760232718094,0.001,3725.1,3724.6,2.68485206]
[1760232718295,0.001,3725.1,3724.6,3.22184343]
[1760232718500,0.001,3725.1,3724.6,3.67724343]
[1760232718830,0.001,3725.1,3724.6,4.31084343]
[1760232720496,0.001,3725.1,3724.6,0.53699137]
[1760232720910,0.001,3725.1,3724.6,3.14025206]
[1760232721194,0.001,3725.1,3724.6,3.77385206]
[1760232724230,0.001,3725.1,3724.6,3.90745206]
[1760232724933,0.001,3725.1,3724.6,1.2226]
[1760232725140,0.001,3725.1,3724.6,3.14025206]
[1760232725310,0.1336,3724.9,3724.6,3.45427727]
[1760232725999,0.1336,3724.9,3724.6,3.63247727]
[1760232726202,0.001,3725.1,3724.6,4.08787727]
[1760232727842,0.001,3725.1,3724.6,1.40302521]
[1760232728007,0.001,3725.1,3724.6,0.4554]
[1760232728736,0.001,3725.1,3723.6,0.4554]
[1760232728737,2.68461093,3725.0,3723.6,0.4554]
[1760232728916,0.001,3725.1,3724.6,0.0099]
[1760232729241,4.60577998,3724.7,3724.6,0.0099]
[1760232729429,5.06567998,3724.7,3724.6,0.0099]
[1760232730005,10.98714898,3724.7,3724.6,0.0099]
[1760232730211,5.06567998,3724.7,3724.6,0.0099]
[1760232730948,9.23933298,3724.7,3724.6,0.0099]
[1760232731441,4.60577998,3724.7,3724.6,0.0099]
[1760232731746,7.21542198,3724.7,3724.6,0.0099]
[1760232731944,5.06567998,3724.7,3724.6,0.0099]
[1760232732146,7.36204098,3724.7,3724.6,0.0099]
[1760232732445,1.921,3724.7,3724.6,0.0099]
[1760232732846,0.001,3724.7,3724.6,0.0099]
[1760232733036,3.14567998,3724.7,3724.6,0.0099]
[1760232733747,5.06567998,3724.7,3724.6,0.0099]
[1760232734812,7.16967398,3724.7,3724.6,0.0099]
[1760232735161,7.33567998,3724.7,3724.6,0.0099]
[1760232735325,7.53535198,3724.7,3724.6,0.0099]
[1760232735514,5.06567998,3724.7,3724.6,0.0099]
[1760232736231,7.24690398,3724.7,3724.6,0.0099]
[1760232736438,9.92899898,3724.7,3724.6,0.0099]
[1760232737422,16.59041,3724.4,3722.6,0.4554]
[1760232737733,1.92,3723.3,3722.6,3.14167462]
[1760232737947,1.92,3723.1,3722.7,0.31416746]
[1760232738454,2.68594043,3723.1,3722.7,0.31416746]
[1760232738623,2.68586271,3723.2,3722.7,0.31416746]
[1760232738821,0.1336,3722.7,3722.3,0.002]
[1760232739045,1.92,3723.3,3722.3,0.002]
[1760232739215,1.92,3723.1,3722.4,0.4554]
[1760232739419,1.92,3722.8,3722.4,0.4554]
[1760232740154,1.92,3723.1,3722.4,0.4554]
[1760232740461,1.92,3722.9,3722.4,0.4554]
[1760232740756,1.92,3722.9,3722.5,0.31439262]
[1760232740937,1.92,3723.0,3722.5,0.31439262]
[1760232741256,0.1336,3722.5,3722.4,0.4554]
[1760232741827,0.2269,3723.9,3722.4,3.14183885]
[1760232742031,4.60552792,3723.7,3722.7,2.68620126]
[1760232742227,2.68572275,3723.4,3722.7,2.68620126]
[1760232742440,2.68572275,3723.4,3722.8,0.26862013]
[1760232742643,2.68544062,3723.8,3723.0,2.6859531]
[1760232742845,1.92,3723.7,3723.2,2.68585555]
[1760232743057,1.92,3723.8,3723.2,3.14045555]
[1760232743252,0.4599,3724.5,3723.2,3.14045555]
[1760232743253,0.6714,3724.8,3723.2,0.4546]
[1760232743460,0.1336,3723.6,3723.5,2.68564522]
[1760232743658,0.1336,3723.8,3723.7,3.31910098]
[1760232743857,2.68550786,3725.1,3723.7,0.4546]
[1760232744027,0.001,3725.1,3724.4,2.68499528]
[1760232744365,1.92,3724.5,3723.5,0.85117773]
[1760232744570,0.1336,3723.8,3723.7,3.31910098]
[1760232744731,2.68550779,3725.1,3724.3,2.68506684]
[1760232745432,0.001,3725.1,3724.4,0.3635]
[1760232746033,1.92,3724.8,3724.1,2.68519156]
[1760232746234,0.1336,3724.2,3724.1,2.68519156]
[1760232746542,0.4569,3724.6,3722.9,0.3635]
[1760232746743,2.68540963,3723.9,3722.9,0.3635]
[1760232747043,2.68544966,3723.8,3723.1,2.68592727]
[1760232747365,1.92,3724.1,3723.2,2.68581085]
[1760232747663,1.92,3724.1,3723.2,0.53718619]
[1760232747832,2.68515136,3724.2,3723.2,0.53718619]
[1760232748028,0.001,3724.7,3723.3,0.3635]
[1760232748354,2.68521093,3724.2,3723.3,3.04928682]
[1760232748558,1.92,3724.1,3723.3,3.04928682]
[1760232748876,2.3769,3724.6,3723.3,0.3635]
[1760232749077,2.68516454,3724.2,3723.4,2.68571735]
[1760232749257,1.92,3724.0,3723.3,3.04928534]
[1760232749585,0.001,3724.7,3723.4,0.57352187]
[1760232749749,2.68487509,3724.6,3723.4,0.3635]
[1760232749950,2.68578256,3724.7,3723.8,2.6854265]
[1760232750184,2.68578256,3724.7,3723.4,0.3635]
[1760232750185,0.001,3724.7,3723.9,0.3635]
[1760232750748,0.001,3724.7,3724.4,2.68492757]
[1760232751048,0.001,3724.7,3724.3,2.68504781]
[1760232751272,0.001,3724.7,3724.3,3.22208105]
[1760232751455,0.001,3724.7,3724.4,2.68496391]
[1760232751975,0.001,3724.7,3724.3,0.90053324]
[1760232751976,0.001,3724.7,3724.3,3.5856009]
[1760232752175,0.001,3724.7,3724.4,0.3635]
[1760232752610,0.001,3724.7,3724.4,3.04849095]
[1760232752945,0.001,3724.7,3724.4,0.62707057]
[1760232753248,0.001,3724.7,3724.6,2.68485206]
[1760232753747,0.001,3724.7,3724.6,0.3635]
[1760232753948,0.001,3724.7,3724.6,3.04835206]
[1760232754359,0.001,3724.7,3724.6,0.3635]
[1760232754861,0.001,3724.7,3723.6,2.68550368]
[1760232755069,0.001,3724.7,3724.3,2.68500851]
[1760232755355,0.001,3724.7,3724.5,2.68487675]
[1760232755557,0.001,3724.7,3724.3,2.68499676]
[1760232755771,0.001,3724.7,3724.0,0.3635]
[1760232755967,0.001,3724.7,3724.6,2.68485206]
[1760232756172,0.001,3724.7,3724.6,3.89178683]
[1760232756389,0.001,3724.7,3724.6,4.25528683]
[1760232756998,0.001,3724.7,3724.6,4.38888683]
[1760232761006,0.001,3724.7,3724.6,1.57043477]
[1760232761178,0.001,3724.7,3723.7,0.26855037]
[1760232761380,0.001,3724.7,3724.6,2.68485206]
[1760232761584,0.001,3724.7,3724.4,2.68492566]
[1760232761987,0.001,3724.7,3724.4,3.04852566]
[1760232762304,0.001,3724.7,3723.7,3.58763613]
[1760232762305,0.001,3724.7,3723.9,0.3636]
[1760232762504,0.001,3724.7,3723.6,2.68551559]
[1760232762505,1.92,3724.6,3723.6,2.68551559]
[1760232762705,1.92,3724.3,3723.5,0.3636]
[1760232763005,1.92,3724.5,3723.5,0.66853885]
[1760232763313,0.001,3724.7,3723.7,2.68550098]
[1760232763477,0.001,3724.7,3724.4,2.68492963]
[1760232763787,0.001,3724.7,3724.6,2.68485206]
[1760232764383,0.001,3724.7,3724.6,3.04845206]
[1760232764600,0.001,3724.7,3724.6,3.62179023]
[1760232765112,0.001,3724.7,3723.8,0.002]
[1760232765279,0.001,3724.7,3723.9,0.3636]
[1760232765612,0.001,3724.7,3724.6,2.68485206]
[1760232765978,0.001,3724.7,3724.6,3.04845206]
[1760232766624,0.001,3724.7,3724.0,0.6336]
[1760232766912,0.001,3724.7,3724.5,0.3636]
[1760232767092,0.001,3724.7,3724.6,2.68485206]
[1760232767601,0.001,3724.7,3724.6,3.04845206]
[1760232767808,0.001,3724.7,3724.6,0.3636]
[1760232768031,0.001,3724.7,3724.6,3.04845206]
[1760232768202,0.001,3724.7,3724.6,3.62179312]
[1760232768696,1.92,3724.6,3724.0,0.3636]
[1760232769032,2.68485206,3724.6,3724.0,0.3636]
[1760232769227,1.92,3724.0,3723.8,0.002]
[1760232769515,1.92,3724.6,3723.8,0.002]
[1760232769712,2.68522626,3724.1,3723.8,0.002]
[1760232769912,1.92,3723.9,3723.8,0.002]
[1760232770114,0.001,3724.7,3723.9,0.3636]
[1760232770416,0.001,3724.7,3723.9,3.04894393]
[1760232770717,1.92,3724.6,3724.1,2.68520862]
[1760232770897,0.001,3724.7,3724.2,0.3636]
[1760232771080,2.68584238,3724.7,3724.2,0.3636]
[1760232771280,0.001,3724.7,3724.0,2.99035412]
[1760232771502,0.1336,3724.5,3724.1,3.04881253]
[1760232771699,0.1336,3724.5,3724.2,0.69899069]
[1760232772234,2.68522008,3724.1,3723.8,0.002]
[1760232772433,1.92,3724.0,3723.8,0.002]
[1760232772744,1.92,3724.6,3723.9,0.3636]
[1760232772943,1.92,3724.3,3723.8,0.002]
[1760232773244,1.92,3724.3,3723.8,0.63435012]
[1760232773449,2.68501663,3724.4,3724.1,2.68520057]
[1760232773450,0.1336,3724.4,3724.1,2.68520057]
[1760232773600,0.1336,3724.4,3723.9,3.682544]
[1760232773601,0.1336,3724.4,3723.9,0.6336]
[1760232773806,0.1336,3724.4,3724.1,0.3636]
[1760232774007,0.1336,3724.4,3724.1,3.0487559]
[1760232774245,0.1336,3724.4,3723.8,0.1356]
[1760232774445,0.1336,3724.1,3723.8,2.68737228]
[1760232774745,2.68517555,3724.2,3723.8,0.002]
[1760232774948,1.92,3724.6,3723.8,0.3656]
[1760232775101,0.1336,3724.2,3723.8,0.3656]
[1760232775302,0.1336,3724.2,3723.9,0.3636]
[1760232775631,0.1336,3724.2,3723.9,3.04895674]
[1760232775837,0.1336,3724.2,3723.9,3.27236915]
[1760232776038,0.1336,3724.2,3724.0,0.3636]
[1760232776216,0.1336,3724.2,3723.9,0.58701241]
[1760232776412,1.92,3724.1,3723.8,0.002]
[1760232776737,2.6852357,3724.1,3723.8,0.002]
[1760232777034,0.1336,3724.2,3723.9,0.3636]
[1760232777235,0.1336,3724.2,3723.9,2.68533529]
[1760232777535,0.1336,3724.2,3724.0,0.3636]
[1760232778034,1.92,3723.9,3723.8,0.002]
[1760232778334,4.60535674,3723.9,3723.8,0.002]
[1760232779425,5.07835674,3723.9,3723.8,0.002]
[1760232779736,19.06019574,3723.9,3723.8,0.002]
[1760232779912,18.43130674,3723.9,3723.8,0.002]
[1760232780112,10.51390674,3723.9,3723.8,0.002]
[1760232780314,9.97590674,3723.9,3723.8,0.002]
[1760232780642,13.15922074,3723.9,3723.8,0.002]
[1760232781622,10.02288174,3723.9,3723.8,0.002]
[1760232782024,0.2293,3724.2,3723.8,0.002]
[1760232782246,0.473,3724.5,3723.8,0.002]
[1760232782736,2.68535674,3723.9,3723.8,0.002]
[1760232782938,1.92,3723.9,3723.8,0.002]
[1760232783236,0.001,3724.5,3723.8,0.3656]
[1760232783418,0.001,3724.5,3723.9,2.68534985]
[1760232783613,0.001,3724.5,3724.0,0.30509499]
[1760232783815,0.001,3724.5,3723.9,0.6336]
[1760232784013,0.001,3724.5,3723.8,0.3656]
[1760232784231,0.001,3724.5,3723.9,0.6336]
[1760232784414,0.001,3724.5,3723.8,0.3656]
[1760232784616,1.92,3723.9,3723.8,0.002]
[1760232784925,5.07835674,3723.9,3723.8,0.002]
[1760232785126,5.30765674,3723.9,3723.8,0.002]
[1760232785840,7.48540274,3723.9,3723.8,0.002]
[1760232786219,20.72967574,3723.9,3723.8,0.002]
[1760232786633,17.08038274,3723.9,3723.8,0.002]
[1760232787223,17.66682274,3723.9,3723.8,0.002]
[1760232787944,9.73740874,3723.9,3723.8,0.002]
[1760232788256,14.40652574,3723.9,3723.8,0.002]
[1760232788960,15.04012574,3723.9,3723.8,0.002]
[1760232789325,23.41789574,3723.9,3723.8,0.002]
[1760232789526,22.89078074,3723.9,3723.8,0.002]
[1760232790328,23.66371174,3723.9,3723.8,0.002]
[1760232791232,5.94125674,3723.9,3723.8,0.002]
[1760232791435,11.17290774,3723.9,3723.8,0.002]
[1760232791827,15.56386522,3723.5,3723.4,1e-08]
[1760232792027,4.60564522,3723.5,3723.4,1e-08]
[1760232792339,5.07864522,3723.5,3723.4,1e-08]
[1760232792537,8.21155822,3723.5,3723.4,1e-08]
[1760232792731,7.40740622,3723.5,3723.4,1e-08]
[1760232792933,5.07864522,3723.5,3723.4,1e-08]
[1760232793132,7.40740622,3723.5,3723.4,1e-08]
[1760232793339,5.07864522,3723.5,3723.4,1e-08]
[1760232794161,4.60564522,3723.5,3723.4,1e-08]
[1760232794728,3.3873435,3724.4,3723.4,1e-08]
[1760232794929,0.001,3724.5,3723.4,1e-08]
[1760232794930,0.001,3724.5,3723.4,0.36360001]
[1760232795124,2.68517175,3724.2,3723.4,3.04929439]
[1760232795365,2.68564522,3723.5,3723.4,1e-08]
[1760232795739,3.15864522,3723.5,3723.4,1e-08]
[1760232797865,4.60564522,3723.5,3723.4,1e-08]
[1760232798546,5.07864522,3723.5,3723.4,1e-08]
[1760232798743,4.60564522,3723.5,3723.4,1e-08]
[1760232799560,0.001,3724.5,3723.4,1e-08]
[1760232799731,2.68543534,3723.8,3723.4,1e-08]
[1760232799936,4.60551269,3723.7,3723.4,1e-08]
[1760232800137,1.92,3723.7,3723.4,1e-08]
[1760232800672,4.60564522,3723.5,3723.4,1e-08]
[1760232801466,1.92,3723.5,3723.4,1e-08]
[1760232801773,1.92,3723.5,3723.4,0.36360001]
[1760232801984,0.001,3723.9,3723.7,2.68549742]
[1760232802178,0.001,3723.9,3723.8,2.9539786]
[1760232802479,0.001,3724.3,3724.2,3.31874043]
[1760232802680,0.001,3724.3,3724.2,3.45234043]
[1760232802879,0.001,3724.3,3724.0,0.6336]
[1760232803070,0.001,3724.3,3724.1,3.04775711]
[1760232803266,0.001,3724.3,3724.2,2.68514043]
[1760232803470,0.001,3724.3,3724.2,3.04774043]
[1760232803648,0.001,3724.3,3724.2,3.68134043]
[1760232804746,0.001,3724.3,3724.2,3.81494043]
[1760232805579,0.001,3724.3,3724.2,3.68134043]
[1760232805798,0.001,3724.3,3724.2,4.51660568]
[1760232807374,0.001,3724.3,3724.2,4.38300568]
[1760232807948,0.001,3724.3,3724.2,1.69786525]
[1760232808188,0.001,3724.3,3724.2,0.3626]
[1760232808476,0.001,3724.3,3724.2,0.9962]
[1760232808681,0.001,3724.3,3723.8,3.04797155]
[1760232808884,0.001,3724.3,3723.9,0.3626]
[1760232809087,0.001,3724.3,3723.4,0.36260001]
[1760232809385,1.92,3724.2,3723.5,0.66744424]
[1760232809584,2.68527115,3724.1,3723.5,0.3626]
[1760232809987,1.92,3724.2,3723.6,2.68556294]
[1760232810292,1.92,3724.2,3723.5,3.0482273]
[1760232810498,2.6851499,3724.2,3723.5,3.0482273]
[1760232810661,1.92,3724.2,3723.5,3.0482273]
[1760232810858,0.001,3724.3,3723.5,0.66742273]
[1760232811057,0.001,3724.3,3723.4,1e-08]
[1760232811058,2.6855591,3723.7,3723.4,1e-08]
[1760232811256,2.6856424,3723.6,3723.4,1e-08]
[1760232811658,2.68564522,3723.5,3723.4,1e-08]
[1760232812091,4.60564522,3723.5,3723.4,1e-08]
[1760232812867,5.07784522,3723.5,3723.4,1e-08]
[1760232813376,4.60564522,3723.5,3723.4,1e-08]
[1760232813577,5.07784522,3723.5,3723.4,1e-08]
[1760232813965,4.60564522,3723.5,3723.4,1e-08]
[1760232814374,1.92,3723.5,3723.4,1e-08]
[1760232815101,4.60564522,3723.5,3723.4,1e-08]
[1760232815973,0.001,3724.3,3723.4,1e-08]
[1760232816174,0.001,3724.3,3723.5,0.6336]
[1760232816495,0.001,3724.7,3724.4,3.31859624]
[1760232816656,0.001,3725.5,3723.6,0.73078508]
[1760232816861,0.001,3725.5,3723.7,0.3576]
[1760232817090,0.001,3725.5,3724.7,0.6336]
[1760232817293,0.1346,3725.5,3724.8,0.1336]
[1760232817479,0.1336,3724.8,3724.3,0.6336]
[1760232817690,0.1336,3724.8,3724.4,0.3576]
[1760232817869,0.1336,3724.8,3724.5,0.6336]
[1760232818069,0.1336,3724.8,3724.6,0.3576]
[1760232818463,0.1336,3724.8,3724.7,0.3576]
[1760232818659,2.0536,3724.8,3724.2,0.4912]
[1760232819212,0.001,3725.5,3723.9,0.3576]
[1760232819213,0.1336,3724.3,3723.9,0.3576]
[1760232819412,0.001,3724.7,3724.1,0.7672]
[1760232819568,0.001,3724.7,3724.3,0.6336]
[1760232819758,0.001,3724.7,3724.4,0.17584]
[1760232819964,0.001,3724.7,3724.4,0.6336]
[1760232820221,0.001,3724.7,3724.6,0.6336]
[1760232820675,0.001,3725.1,3724.6,3.67605206]
[1760232820876,0.001,3725.1,3725.0,3.31816375]
[1760232821277,0.001,3725.1,3725.0,3.67476375]
[1760232821489,0.001,3725.1,3725.0,4.31070653]
[1760232821687,0.001,3725.1,3725.0,1.62614278]
[1760232821996,0.001,3725.1,3724.6,0.3566]
[1760232822298,1.92,3724.9,3723.0,0.002]
[1760232822498,1.921,3725.1,3724.7,0.3566]
[1760232822499,0.001,3725.1,3724.7,0.3566]
[1760232822685,0.001,3725.1,3724.8,0.3566]
[1760232823001,0.001,3725.1,3724.9,0.3566]
[1760232823578,1.92,3725.0,3724.3,0.3566]
[1760232823983,1.92,3725.0,3724.4,0.6336]
[1760232824187,1.921,3725.1,3724.5,0.36752091]
[1760232824594,0.001,3725.1,3724.5,0.36752091]
[1760232824789,1.92,3724.9,3724.5,0.36752091]
[1760232824993,1.92,3724.9,3724.5,0.3566]
[1760232825391,0.001,3725.1,3723.4,1e-08]
[1760232825634,1.92,3724.9,3724.1,0.6336]
[1760232825937,1.92,3725.0,3724.1,3.31878523]
[1760232826094,1.92,3725.0,3724.2,0.36753852]
[1760232826503,2.68469264,3724.9,3724.2,0.36753852]
[1760232826706,1.92,3724.7,3724.3,0.3566]
[1760232827039,1.92,3724.7,3724.4,0.3566]
[1760232827594,1.92,3724.7,3724.5,0.3566]
[1760232827796,1.92,3724.5,3724.2,0.36753852]
[1760232827994,1.92,3724.5,3724.3,0.3566]
[1760232828196,4.60463582,3724.9,3723.7,0.3566]
[1760232828427,1.92,3724.7,3723.7,0.3566]
[1760232828628,1.92,3724.7,3722.3,0.002]
[1760232828629,1.92,3724.0,3723.2,0.3566]
[1760232828932,0.39364849,3724.8,3723.4,0.30425226]
[1760232829092,1.92,3724.4,3723.4,1e-08]
[1760232829286,0.4702,3724.7,3723.4,1e-08]
[1760232829287,2.68564522,3723.5,3723.4,1e-08]
[1760232829515,4.60564522,3723.5,3723.4,1e-08]
[1760232831238,1.92,3723.5,3723.4,1e-08]
[1760232831393,1.92,3723.5,3723.4,0.35660001]
[1760232831593,1.92,3723.5,3723.4,3.67591736]
[1760232831816,2.68381427,3726.1,3723.5,0.6336]
[1760232832092,2.68472688,3724.8,3724.1,3.31880808]
[1760232832319,2.68456375,3725.0,3724.2,0.3566]
[1760232832516,0.001,3725.1,3724.2,0.3566]
[1760232832723,2.68472798,3724.8,3724.2,0.3566]
[1760232832897,1.92,3724.7,3724.3,0.36754282]
[1760232833099,2.68456375,3725.0,3723.8,0.3566]
[1760232833100,1.92,3724.3,3723.8,0.3566]
[1760232833293,2.68505215,3724.4,3723.9,0.3566]
[1760232833531,1.92,3724.3,3723.7,3.31909494]
[1760232833695,1.92,3724.4,3724.0,0.3566]
[1760232833895,1.92,3724.9,3723.4,0.35660001]
[1760232834095,4.60564522,3723.5,3723.4,1e-08]
[1760232836232,1.92,3723.5,3723.4,0.35660001]
[1760232836566,1.92,3723.5,3723.4,3.04231736]
[1760232836749,1.92,3723.5,3723.4,3.3465491]
[1760232836944,1.92,3723.5,3723.4,3.9801491]
[1760232837139,0.001,3724.7,3723.4,1.29443175]
[1760232837339,2.68579231,3724.7,3723.8,0.6336]
[1760232837540,1.92,3724.4,3723.9,0.3566]
[1760232837854,1.92,3724.6,3723.4,1e-08]
[1760232838058,1.92,3723.7,3723.4,1e-08]
[1760232838349,2.68492415,3724.5,3723.4,1e-08]
[1760232838350,1.92,3724.5,3723.4,1e-08]
[1760232838550,2.3477,3724.5,3723.4,1e-08]
[1760232838751,1.92,3723.7,3723.4,0.35660001]
[1760232838953,4.6055731,3723.6,3723.5,0.3566]
[1760232839859,4.60564522,3723.5,3723.4,1e-08]
[1760232840634,5.03334522,3723.5,3723.4,1e-08]
[1760232840925,4.60564522,3723.5,3723.4,1e-08]
[1760232841128,5.03334522,3723.5,3723.4,1e-08]
[1760232841763,0.39364849,3724.1,3723.4,1e-08]
[1760232841943,0.2224,3724.3,3723.4,1e-08]
[1760232841944,2.68499624,3724.4,3723.4,0.35660001]
[1760232842144,0.1336,3723.5,3723.4,0.35660001]
[1760232842530,0.1336,3724.0,3723.6,2.68556363]
[1760232842730,2.68498457,3724.5,3723.7,0.72417636]
[1760232842958,1.92,3724.6,3723.7,0.36757636]
[1760232843160,1.92,3724.6,3723.4,1e-08]
[1760232843161,1.92,3724.5,3723.9,0.6336]
[1760232843344,1.92,3724.5,3723.9,3.31894129]
[1760232843549,0.001,3724.7,3723.4,1e-08]
[1760232843550,1.92,3724.4,3723.4,0.63360001]
[1760232843751,4.60501397,3724.4,3723.5,0.3566]
[1760232843980,2.68501397,3724.4,3723.6,2.68554277]
[1760232844180,2.68501387,3724.4,3723.7,0.36757428]
[1760232844481,1.92,3724.4,3723.8,3.04202018]
[1760232844687,1.92,3724.4,3723.8,0.3566]
[1760232844884,0.001,3724.7,3723.8,0.3566]
[1760232845084,1.92,3724.6,3723.9,2.68535154]
[1760232845285,0.001,3724.7,3724.1,0.6336]
[1760232845460,0.001,3724.7,3724.3,0.6336]
[1760232845881,0.001,3724.7,3724.4,3.04158868]
[1760232846055,0.001,3724.7,3724.5,0.6336]
[1760232846258,0.001,3724.7,3724.5,0.9902]
[1760232846582,0.001,3724.7,3724.6,0.72411786]
[1760232846779,0.001,3724.7,3724.6,0.3566]
[1760232846978,1.92,3724.6,3723.4,0.35660001]
[1760232847180,1.92,3724.4,3723.4,0.35660001]
[1760232847371,1.92,3723.7,3723.4,0.35660001]
[1760232847764,3.07857264,3724.5,3723.4,1e-08]
[1760232847765,2.68536991,3723.9,3723.4,1e-08]
[1760232847969,1.92,3723.8,3723.5,0.3566]
[1760232848165,2.68521407,3724.1,3723.6,0.3566]
[1760232848354,1.92,3723.6,3723.4,1e-08]
[1760232848552,1.92,3723.9,3723.4,1e-08]
[1760232848759,4.60521756,3724.1,3723.4,1e-08]
[1760232849095,4.60521756,3724.1,3723.5,0.3566]
[1760232849288,1.92,3724.6,3723.6,0.6336]
[1760232849455,2.68532534,3724.0,3723.5,0.3566]
[1760232849856,1.92,3723.9,3723.5,0.3566]
[1760232850053,1.92,3723.9,3723.6,0.66083768]
[1760232850398,1.92,3724.2,3723.7,0.3566]
[1760232850599,1.92,3724.0,3723.6,0.30423768]
[1760232850806,1.92,3724.0,3723.7,0.3566]
[1760232851326,0.001,3724.7,3723.8,0.3566]
[1760232851615,0.001,3724.7,3724.4,0.6336]
[1760232851973,0.001,3724.7,3724.5,0.3566]
[1760232852175,0.001,3724.7,3724.6,0.36751916]
[1760232852398,0.001,3724.7,3724.0,0.3566]
[1760232852706,0.1336,3724.5,3724.0,0.3566]
[1760232852923,0.1336,3724.5,3723.6,0.6336]
[1760232852924,0.1336,3724.3,3724.1,0.3566]
[1760232853083,0.1336,3724.3,3723.7,0.9902]
[1760232853431,2.68516373,3724.2,3723.7,0.9902]
[1760232853713,1.92,3724.1,3723.8,0.38093808]
[1760232853886,0.1336,3724.0,3723.6,0.002]
[1760232854075,1.92,3723.9,3723.6,0.002]
[1760232854274,0.1336,3723.8,3723.7,0.3566]
[1760232854475,0.1336,3723.8,3723.6,0.002]
[1760232854798,0.1336,3723.8,3723.7,0.26876368]
[1760232855188,0.1336,3723.8,3723.7,3.31086466]
[1760232855505,0.1336,3724.2,3723.7,1.25896368]
[1760232855686,0.1336,3724.2,3723.7,0.90236368]
[1760232856004,0.1336,3724.2,3723.8,0.3566]
[1760232856217,0.1336,3724.2,3723.9,0.49605637]
[1760232856401,0.001,3724.7,3724.0,3.31888402]
[1760232856711,0.001,3724.7,3724.3,3.31863872]
[1760232857227,0.001,3724.7,3724.4,0.3566]
[1760232857576,0.001,3724.7,3724.5,0.3566]
[1760232857827,0.001,3724.7,3724.6,0.36751997]
[1760232858015,0.001,3724.7,3724.6,0.72411997]
[1760232858621,0.001,3724.7,3724.6,0.3566]
[1760232859026,0.001,3724.7,3724.1,0.3566]
[1760232859487,2.68580467,3724.7,3723.7,0.6336]
[1760232859684,1.92,3724.6,3723.7,3.31908264]
[1760232859888,1.92,3724.3,3723.7,0.6336]
[1760232860087,0.001,3724.7,3723.8,0.36777606]
[1760232860316,2.68506068,3724.4,3723.6,0.3586]
[1760232860522,2.68506068,3724.4,3723.6,3.04415222]
[1760232861129,1.921,3724.7,3723.7,0.6336]
[1760232861423,1.921,3724.7,3724.0,2.68527133]
[1760232861595,1.921,3724.7,3724.1,0.3566]
[1760232861792,0.001,3724.7,3724.1,0.66078713]
[1760232861990,0.001,3724.7,3724.2,3.04168825]
[1760232862186,0.001,3724.7,3724.3,2.68505242]
[1760232862392,0.001,3724.7,3724.3,3.04165242]
[1760232862591,0.001,3724.7,3724.4,0.3566]
[1760232862823,0.001,3724.7,3724.4,0.95970442]
[1760232863521,1.92,3724.5,3724.1,0.30418713]
[1760232863708,4.60578951,3724.7,3723.9,2.68531275]
[1760232863892,4.60578951,3724.7,3724.1,0.3566]
[1760232864291,0.001,3724.7,3724.1,0.3566]
[1760232864623,2.68513269,3724.3,3723.5,2.68564345]
[1760232864822,1.92,3724.2,3723.7,0.26876435]
[1760232865139,2.68499614,3724.5,3723.7,2.95424976]
[1760232865340,2.68485826,3724.6,3723.8,0.3566]
[1760232865538,1.92,3724.1,3723.8,0.3566]
[1760232866237,1.92,3724.6,3723.9,3.04193836]
[1760232866444,0.1336,3724.4,3724.0,0.30419384]
[1760232866738,0.1336,3724.4,3724.1,0.3566]
[1760232866956,0.1336,3724.4,3724.0,2.98947535]
[1760232867100,0.1336,3724.4,3724.2,0.3566]
[1760232867295,0.1336,3724.4,3724.3,0.3566]
[1760232867520,0.1346,3724.7,3724.3,3.04166833]
[1760232867725,0.1346,3724.7,3724.4,0.3566]
[1760232867930,0.1346,3724.7,3724.5,0.3566]
[1760232868237,0.1346,3724.7,3724.6,0.3566]
[1760232868621,0.001,3725.1,3724.6,3.67505206]
[1760232868933,0.001,3725.1,3724.7,0.36750521]
[1760232869233,0.001,3725.1,3724.8,0.6336]
[1760232869545,0.001,3725.1,3724.8,0.3566]
[1760232869726,0.001,3725.1,3724.3,0.3566]
[1760232869931,2.68463275,3725.0,3724.3,0.3566]
[1760232870103,0.001,3725.1,3724.3,3.04162206]
[1760232870305,0.001,3725.1,3724.3,3.61431269]
[1760232870505,0.001,3725.1,3724.3,0.92929063]
[1760232870705,1.92,3724.9,3724.3,0.3566]
[1760232871238,2.68465328,3724.9,3724.3,0.3566]
[1760232871416,1.92,3724.9,3724.3,0.3566]
[1760232871620,1.92,3725.0,3724.3,3.04165157]
[1760232871817,1.92,3725.0,3724.4,0.5728862]
[1760232872041,0.001,3725.1,3724.3,0.3566]
[1760232872336,0.001,3725.1,3724.8,2.68465755]
[1760232872632,0.001,3725.1,3724.8,2.68464201]